fUST/lending_fUST_20250611
["ID","MTS","AMOUNT","RATE_DAILY","PERIOD"]
[365340564,1749609040370,-409.09195131,0.00021369,4]
[365340565,1749609040379,-420.0,0.00021369,4]
[365340566,1749609040388,-1603.01,0.00021369,4]
[365340567,1749609040397,-1150.16,0.00021369,4]
[365340568,1749609040407,-2491.0,0.00021369,4]
[365340569,1749609040416,-435.55083539,0.00021369,4]
[365340570,1749609040425,-430.86228388,0.00021369,4]
[365340571,1749609040435,-2402.75,0.00021369,4]
[365340572,1749609040444,-435.48548003,0.00021369,4]
[365340573,1749609040453,-468.50968227,0.00021369,4]
[365340574,1749609040462,-482.52514485,0.00021369,4]
[365340575,1749609040471,-436.37479857,0.00021369,4]
[365340576,1749609040481,-434.96765138,0.00021369,4]
[365340577,1749609040490,-460.0,0.00021369,4]
[365340578,1749609040499,-390.0,0.00021369,4]
[365340579,1749609040508,-424.46043114,0.00021369,4]
[365340580,1749609040517,-410.0,0.00021369,4]
[365340581,1749609040526,-723.02,0.00021369,4]
[365340582,1749609040535,-418.73639525,0.00021369,4]
[365340583,1749609040545,-460.0,0.00021369,4]
[365340584,1749609040554,-460.0,0.00021369,4]
[365340585,1749609040563,-460.0,0.00021369,4]
[365340586,1749609040572,-1621.65,0.000214,2]
[365340587,1749609040581,-1017.49,0.00021587,2]
[365340588,1749609040591,-402.95058828,0.00021643,4]
[365340589,1749609040600,-460.0,0.00021643,4]
[365340590,1749609040609,-419.26458333,0.00021643,4]
[365340591,1749609040623,-416.98160023,0.00021643,4]
[365340592,1749609040632,-220.32715743,0.00021643,4]
[365340593,1749609040642,-460.0,0.00021643,4]
[365340594,1749609040651,-385.45811749,0.00021643,4]
[365340595,1749609040660,-460.0,0.00021643,4]
[365340596,1749609040669,-432.02689205,0.00021643,4]
[365340597,1749609040679,-448.41604372,0.00021643,4]
[365340598,1749609040688,-409.92706772,0.00021643,4]
[365340599,1749609040698,-436.50323665,0.00021643,4]
[365340600,1749609040707,-400.14910191,0.00021643,4]
[365340601,1749609040716,-417.25846485,0.00021643,4]
[365340602,1749609040725,-392.06457623,0.00021643,4]
[365340603,1749609040734,-394.97702531,0.00021643,4]
[365340604,1749609040743,-326.93856159,0.00021643,4]
[365340605,1749609040752,-371.10849349,0.00021643,4]
[365340606,1749609040762,-460.0,0.00021643,4]
[365340607,1749609040771,-460.0,0.00021643,4]
[365340608,1749609040779,-427.90834845,0.00021643,4]
[365340609,1749609040789,-454.62057702,0.00021643,4]
[365340610,1749609040798,-403.5843808,0.00021643,4]
[365340611,1749609040807,-425.00562769,0.00021643,4]
[365340612,1749609040816,-447.91429523,0.00021643,4]
[365340613,1749609040825,-420.41920565,0.00021643,4]
[365340614,1749609040835,-522.07542312,0.00021643,4]
[365340615,1749609040844,-394.17581899,0.00021643,4]
[365340616,1749609040854,-418.36828014,0.00021643,4]
[365340617,1749609040863,-460.0,0.00021643,4]
[365340618,1749609040872,-460.0,0.00021643,4]
[365340619,1749609040882,-1167.82,0.00021643,4]
[365340620,1749609040893,-888.17,0.00021643,4]
[365340621,1749609040903,-400.0,0.00021643,4]
[365340622,1749609040912,-460.0,0.00021643,4]
[365340623,1749609040922,-460.0,0.00021643,4]
[365340624,1749609040931,-1445.78,0.00021643,4]
[365340625,1749609040940,-213.55982167,0.00021643,4]
[365340626,1749609040950,-437.41269637,0.00021643,4]
[365340627,1749609040959,-460.0,0.00021643,4]
[365340628,1749609040969,-460.0,0.00021643,4]
[365340629,1749609040978,-854.51,0.00021643,4]
[365340630,1749609040988,-461.20801777,0.00021643,4]
[365340631,1749609040997,-413.18652311,0.00021643,4]
[365340632,1749609041006,-1150.05,0.00021643,4]
[365340633,1749609041015,-460.0,0.00021643,4]
[365340634,1749609041024,-460.0,0.00021643,4]
[365340635,1749609041033,-355.58865184,0.00021643,4]
[365340636,1749609041042,-460.0,0.00021643,4]
[365340637,1749609041051,-460.0,0.00021643,4]
[365340638,1749609041060,-460.0,0.00021643,4]
[365340639,1749609041070,-460.0,0.00021643,4]
[365340640,1749609041079,-516.21,0.00021643,4]
[365340641,1749609041088,-460.0,0.00021643,4]
[365340642,1749609041102,-421.30529598,0.00021643,4]
[365340643,1749609041111,-460.0,0.00021643,4]
[365340644,1749609041121,-436.76740772,0.00021643,4]
[365340645,1749609041130,-1203.07,0.00021643,4]
[365340646,1749609041143,-460.0,0.00021643,4]
[365340647,1749609041159,-2936.58,0.00021643,4]
[365340648,1749609041173,-1253.38,0.00021643,4]
[365340649,1749609041185,-578.39,0.00021643,4]
[365340650,1749609041199,-2106.86,0.00021643,4]
[365340651,1749609041212,-460.0,0.00021643,4]
[365340652,1749609041225,-460.0,0.00021643,4]
[365340653,1749609041238,-460.0,0.00021643,4]
[365340654,1749609041251,-460.0,0.00021643,4]
[365340655,1749609041267,-1603.01,0.00021643,4]
[365340656,1749609041280,-1150.16,0.00021643,4]
[365340657,1749609041294,-2491.0,0.00021643,4]
[365340658,1749609041306,-2402.75,0.00021643,4]
[365340659,1749609041319,-460.0,0.00021643,4]
[365340660,1749609041332,-723.02,0.00021643,4]
[365340661,1749609041345,-420.0,0.00021643,4]
[365340662,1749609041357,-317.18444846,0.00021643,4]
[365340663,1749609041369,-292.74,0.00021643,4]
[365340664,1749609041379,-465.4712377,0.00021894,2]
[365340665,1749609041392,-152.070046,0.000219,2]
[365340666,1749609041404,-8678.43774084,0.000219,6]
[365340667,1749609041417,-151.0,0.000219,2]
[365340668,1749609041431,-154.971557,0.000219,2]
[365340669,1749609041444,-500.0,0.00021917,2]
[365340670,1749609041457,-500.0,0.00021917,2]
[365340671,1749609041472,-373.22237197,0.00021917,2]
[365340672,1749609041485,-460.0,0.00021917,4]
[365340673,1749609041495,-452.83759296,0.00021917,4]
[365340674,1749609041506,-329.87390552,0.00021917,4]
[365340675,1749609041518,-222.15081053,0.00021917,4]
[365340676,1749609041531,-408.37207593,0.00021917,4]
[365340677,1749609041547,-151.0,0.00021917,2]
[365340678,1749609041559,-458.24906736,0.00021917,4]
[365340679,1749609041571,-460.0,0.00021917,4]
[365340680,1749609041583,-1167.82,0.00021917,4]
[365340681,1749609041596,-888.17,0.00021917,4]
[365340682,1749609041608,-151.0,0.00021917,2]
[365340683,1749609041620,-421.63817616,0.00021917,4]
[365340684,1749609041631,-151.0,0.00021917,2]
[365340685,1749609041643,-460.0,0.00021917,4]
[365340686,1749609041654,-1445.78,0.00021917,4]
[365340687,1749609041667,-460.0,0.00021917,4]
[365340688,1749609041678,-460.0,0.00021917,4]
[365340689,1749609041690,-854.51,0.00021917,4]
[365340690,1749609041702,-151.0,0.00021917,2]
[365340691,1749609041713,-151.0,0.00021917,2]
[365340692,1749609041724,-1150.05,0.00021917,4]
[365340693,1749609041736,-460.0,0.00021917,4]
[365340694,1749609041747,-256.77111328,0.00021917,4]
[365340695,1749609041759,-393.35113288,0.00021917,4]
[365340696,1749609041770,-151.0,0.00021917,2]
[365340697,1749609041782,-415.6808916,0.00021917,4]
[365340698,1749609041794,-439.08189107,0.00021917,4]
[365340699,1749609041805,-460.0,0.00021917,4]
[365340700,1749609041816,-516.21,0.00021917,4]
[365340701,1749609041827,-460.0,0.00021917,4]
[365340702,1749609041838,-500.0,0.00021917,4]
[365340703,1749609041850,-500.0,0.00021917,4]
[365340704,1749609041861,-500.0,0.00021917,4]
[365340705,1749609041872,-500.0,0.00021917,4]
[365340706,1749609041883,-460.0,0.00021917,4]
[365340707,1749609041894,-151.0,0.00021917,2]
[365340708,1749609041905,-342.082708,0.00021917,2]
[365340709,1749609041917,-342.082708,0.00021917,2]
[365340710,1749609041928,-1203.07,0.00021917,4]
[365340711,1749609041940,-460.0,0.00021917,4]
[365340712,1749609041952,-2936.58,0.00021917,4]
[365340713,1749609041963,-1253.38,0.00021917,4]
[365340714,1749609041975,-578.39,0.00021917,4]
[365340715,1749609041987,-2106.86,0.00021917,4]
[365340716,1749609041998,-460.0,0.00021917,4]
[365340717,1749609042010,-460.0,0.00021917,4]
[365340718,1749609042021,-460.0,0.00021917,4]
[365340719,1749609042033,-460.0,0.00021917,4]
[365340720,1749609042044,-1603.01,0.00021917,4]
[365340721,1749609042055,-1150.16,0.00021917,4]
[365340722,1749609042065,-2491.0,0.00021917,4]
[365340723,1749609042075,-2402.75,0.00021917,4]
[365340724,1749609042085,-286.936294,0.00021917,2]
[365340725,1749609042095,-460.0,0.00021917,4]
[365340726,1749609042107,-286.936294,0.00021917,2]
[365340727,1749609042116,-723.02,0.00021917,4]
[365340728,1749609042126,-8678.43774074,0.00022003,6]
[365340729,1749609042135,-8678.43774074,0.00022107,6]
[365340730,1749609042146,-556.70875,0.00022107,7]
[365340731,1749609042155,-556.70875,0.00022107,7]
[365340732,1749609042165,-500.0,0.0002216,2]
[365340733,1749609042175,-513.97117762,0.00022191,4]
[365340734,1749609042184,-151.927579,0.00022191,7]
[365340735,1749609042194,-151.0,0.00022191,7]
[365340736,1749609042204,-151.0,0.00022191,7]
[365340738,1749609042364,-154.672298,0.00022191,7]
[365340739,1749609042377,-151.0,0.00022191,7]
[365340740,1749609042387,-151.0,0.00022191,7]
[365340741,1749609042396,-151.0,0.00022191,7]
[365340742,1749609042406,-163.968165,0.00022191,7]
[365340743,1749609042416,-163.968165,0.00022191,7]
[365340744,1749609042427,-460.0,0.00022191,4]
[365340745,1749609042437,-1167.82,0.00022191,4]
[365340746,1749609042447,-888.17,0.00022191,4]
[365340747,1749609042457,-460.0,0.00022191,4]
[365340749,1749609042466,-1445.78,0.00022191,4]
[365340751,1749609042476,-460.0,0.00022191,4]
[365340753,1749609042486,-460.0,0.00022191,4]
[365340755,1749609042495,-854.51,0.00022191,4]
[365340757,1749609042504,-1150.05,0.00022191,4]
[365340759,1749609042513,-460.0,0.00022191,4]
[365340761,1749609042522,-460.0,0.00022191,4]
[365340762,1749609042532,-516.21,0.00022191,4]
[365340764,1749609042541,-460.0,0.00022191,4]
[365340766,1749609042550,-500.0,0.00022191,4]
[365340768,1749609042560,-460.0,0.00022191,4]
[365340770,1749609042570,-1203.07,0.00022191,4]
[365340772,1749609042580,-460.0,0.00022191,4]
[365340775,1749609042589,-2936.58,0.00022191,4]
[365340777,1749609042600,-1253.38,0.00022191,4]
[365340779,1749609042609,-578.39,0.00022191,4]
[365340781,1749609042619,-2106.86,0.00022191,4]
[365340783,1749609042629,-460.0,0.00022191,4]
[365340785,1749609042638,-388.47065426,0.00022191,4]
[365340787,1749609042647,-460.0,0.00022191,4]
[365340789,1749609042657,-460.0,0.00022191,4]
[365340791,1749609042666,-1603.01,0.00022191,4]
[365340793,1749609042676,-1150.16,0.00022191,4]
[365340795,1749609042686,-2491.0,0.00022191,4]
[365340797,1749609042696,-2402.75,0.00022191,4]
[365340799,1749609042705,-460.0,0.00022191,4]
[365340801,1749609042715,-723.02,0.00022191,4]
[365340803,1749609042725,-173.61221489,0.000222,69]
[365340805,1749609042736,-173.61221487,0.000222,69]
[365340807,1749609042745,-8678.43774074,0.0002221,6]
[365340809,1749609042756,-175.32788784,0.00022228,2]
[365340811,1749609042765,-845.0,0.00022274,2]
[365340813,1749609042776,-8678.43774074,0.00022314,7]
[365340815,1749609042786,-151.0,0.00022314,7]
[365340817,1749609042795,-151.0,0.00022314,7]
[365340819,1749609042806,-151.0,0.00022314,7]
[365340821,1749609042816,-151.0,0.00022314,7]
[365340823,1749609042826,-213.16534259,0.00022314,7]
[365340825,1749609042835,-842.5625,0.00022314,7]
[365340827,1749609042845,-501.56200485,0.00022343,2]
[365340829,1749609042854,-503.51490656,0.00022343,2]
[365340831,1749609042864,-200.12013536,0.00022343,2]
[365340834,1749609042879,-501.26190894,0.00022343,2]
[365340836,1749609042888,-503.96951609,0.00022343,2]
[365340838,1749609042898,-501.59031998,0.00022343,2]
[365340840,1749609042908,-502.31464502,0.00022343,2]
[365340842,1749609042918,-8678.43774074,0.00022417,7]
[365340844,1749609042927,-360.77094841,0.00022465,4]
[365340846,1749609042936,-1167.82,0.00022465,4]
[365340848,1749609042950,-888.17,0.00022465,4]
[365340850,1749609042962,-460.0,0.00022465,4]
[365340853,1749609042972,-1445.78,0.00022465,4]
[365340856,1749609042982,-460.0,0.00022465,4]
[365340859,1749609042995,-460.0,0.00022465,4]
[365340862,1749609043005,-854.51,0.00022465,4]
[365340864,1749609043015,-1150.05,0.00022465,4]
[365340866,1749609043025,-460.0,0.00022465,4]
[365340868,1749609043035,-151.0,0.00022465,7]
[365340870,1749609043045,-460.0,0.00022465,4]
[365340872,1749609043055,-516.21,0.00022465,4]
[365340874,1749609043064,-460.0,0.00022465,4]
[365340876,1749609043074,-500.0,0.00022465,4]
[365340878,1749609043083,-460.0,0.00022465,4]
[365340880,1749609043094,-151.0,0.00022465,7]
[365340882,1749609043106,-342.082708,0.00022465,7]
[365340884,1749609043116,-342.082708,0.00022465,7]
[365340886,1749609043125,-1203.07,0.00022465,4]
[365340888,1749609043136,-460.0,0.00022465,4]
[365340890,1749609043145,-2936.58,0.00022465,4]
[365340892,1749609043155,-151.0,0.00022465,7]
[365340894,1749609043166,-1253.38,0.00022465,4]
[365340896,1749609043176,-578.39,0.00022465,4]
[365340898,1749609043186,-2106.86,0.00022465,4]
[365340901,1749609043195,-360.0,0.00022465,4]
[365340902,1749609043205,-329.4868992,0.00022465,4]
[365340904,1749609043214,-460.0,0.00022465,4]
[365340907,1749609043224,-1603.01,0.00022465,4]
[365340909,1749609043234,-1150.16,0.00022465,4]
[365340911,1749609043247,-2491.0,0.00022465,4]
[365340912,1749609043257,-2402.75,0.00022465,4]
[365340914,1749609043266,-286.936294,0.00022465,7]
[365340915,1749609043275,-211.60325576,0.00022465,4]
[365340916,1749609043284,-286.936294,0.00022465,7]
[365340917,1749609043293,-723.02,0.00022465,4]
[365340918,1749609043302,-8678.43774074,0.00022521,7]
[365340919,1749609043311,-152.60008,0.00022521,7]
[365340920,1749609043320,-151.0,0.00022521,7]
[365340921,1749609043330,-151.0,0.00022521,7]
[365340922,1749609043339,-1356.66,0.00022525,2]
[365340923,1749609043348,-429.45978774,0.00022557,2]
[365340924,1749609043357,-463.32,0.000226,7]
[365340925,1749609043366,-8678.43774074,0.00022624,7]
[365340926,1749609043375,-173.61221487,0.00022674,71]
[365340927,1749609043384,-160.0,0.00022679,2]
[365340928,1749609043394,-842.5625,0.00022679,2]
[365340929,1749609043403,-160.0,0.00022679,2]
[365340930,1749609043412,-835.03886221,0.00022679,2]
[365340931,1749609043421,-160.0,0.00022679,2]
[365340932,1749609043430,-160.0,0.00022679,2]
[365340933,1749609043439,-160.0,0.00022679,2]
[365340934,1749609043448,-229.71724145,0.00022679,2]
[365340935,1749609043458,-213.16534259,0.00022679,2]
[365340937,1749609043467,-424.19973472,0.00022679,2]
[365340939,1749609043477,-1621.65,0.000227,7]
[365340941,1749609043486,-25786.52687079,0.000227,2]
[365340943,1749609043496,-8678.43774074,0.00022728,7]
[365340945,1749609043505,-151.0,0.00022728,7]
[365340947,1749609043514,-151.0,0.00022728,7]
[365340949,1749609043524,-281.07,0.00022738,2]
[365340951,1749609043533,-151.0,0.00022739,7]
[365340953,1749609043543,-151.0,0.00022739,7]
[365340954,1749609043552,-151.0,0.00022739,7]
[365340957,1749609043561,-151.0,0.00022739,7]
[365340958,1749609043570,-163.968165,0.00022739,7]
[365340961,1749609043580,-163.968165,0.00022739,7]
[365340962,1749609043589,-1167.82,0.00022739,4]
[365340964,1749609043599,-888.17,0.00022739,4]
[365340967,1749609043609,-153.607775,0.00022739,7]
[365340969,1749609043620,-460.0,0.00022739,4]
[365340971,1749609043629,-1445.78,0.00022739,4]
[365340973,1749609043638,-460.0,0.00022739,4]
[365340975,1749609043647,-460.0,0.00022739,4]
[365340976,1749609043656,-854.51,0.00022739,4]
[365340978,1749609043665,-151.0,0.00022739,7]
[365340981,1749609043675,-1150.05,0.00022739,4]
[365340983,1749609043685,-460.0,0.00022739,4]
[365340985,1749609043695,-556.70875,0.00022739,7]
[365340987,1749609043704,-556.70875,0.00022739,7]
[365340989,1749609043713,-460.0,0.00022739,4]
[365340991,1749609043723,-516.21,0.00022739,4]
[365340993,1749609043732,-460.0,0.00022739,4]
[365340995,1749609043741,-500.0,0.00022739,4]
[365340997,1749609043750,-460.0,0.00022739,4]
[365340999,1749609043760,-1203.07,0.00022739,4]
[365341001,1749609043769,-460.0,0.00022739,4]
[365341003,1749609043779,-2936.58,0.00022739,4]
[365341005,1749609043788,-1253.38,0.00022739,4]
[365341007,1749609043798,-578.39,0.00022739,4]
[365341009,1749609043807,-2106.86,0.00022739,4]
[365341011,1749609043816,-460.0,0.00022739,4]
[365341013,1749609043826,-1603.01,0.00022739,4]
[365341015,1749609043835,-1150.16,0.00022739,4]
[365341017,1749609043845,-2491.0,0.00022739,4]
[365341019,1749609043855,-2402.75,0.00022739,4]
[365341021,1749609043864,-723.02,0.00022739,4]
[365341023,1749609043873,-151.0,0.00022831,7]
[365341025,1749609043883,-8678.43774074,0.00022831,8]
[365341027,1749609043892,-420.0,0.0002292,2]
[365341029,1749609043901,-8678.43774074,0.00022934,8]
[365341031,1749609043911,-67369.56474976,0.00023,2]
[365341033,1749609043921,-624.3157757,0.00023,2]
[365341035,1749609043930,-40260.56482803,0.00023,2]
[365341037,1749609043939,-10043.38789823,0.00023,2]
[365341039,1749609043948,-1328.71905864,0.00023,2]
[365341041,1749609043958,-12971.49030353,0.00023,2]
[365341043,1749609043967,-161.842092,0.00023,7]
[365341045,1749609043976,-152.918798,0.00023013,7]
[365341047,1749609043987,-151.0,0.00023013,7]
[365341049,1749609043996,-151.0,0.00023013,7]
[365341051,1749609044005,-151.0,0.00023013,7]
[365341053,1749609044014,-272.663198,0.00023013,7]
[365341055,1749609044023,-151.0,0.00023013,7]
[365341057,1749609044033,-1167.82,0.00023013,4]
[365341059,1749609044042,-888.17,0.00023013,4]
[365341061,1749609044052,-460.0,0.00023013,4]
[365341063,1749609044061,-1445.78,0.00023013,4]
[365341065,1749609044070,-460.0,0.00023013,4]
[365341067,1749609044080,-460.0,0.00023013,4]
[365341069,1749609044089,-854.51,0.00023013,4]
[365341071,1749609044101,-1150.05,0.00023013,4]
[365341073,1749609044110,-204.46883553,0.00023013,4]
[365341075,1749609044121,-151.0,0.00023013,7]
[365341076,1749609044131,-460.0,0.00023013,4]
[365341079,1749609044142,-516.21,0.00023013,4]
[365341081,1749609044151,-460.0,0.00023013,4]
[365341083,1749609044161,-504.312287,0.00023013,4]
[365341084,1749609044172,-460.0,0.00023013,4]
[365341086,1749609044181,-151.0,0.00023013,7]
[365341089,1749609044191,-342.082708,0.00023013,7]
[365341091,1749609044200,-342.082708,0.00023013,7]
[365341093,1749609044211,-1203.07,0.00023013,4]
[365341095,1749609044221,-460.0,0.00023013,4]
[365341097,1749609044232,-2936.58,0.00023013,4]
[365341099,1749609044241,-1253.38,0.00023013,4]
[365341101,1749609044251,-578.39,0.00023013,4]
[365341102,1749609044260,-2106.86,0.00023013,4]
[365341104,1749609044269,-460.0,0.00023013,4]
[365341106,1749609044279,-1603.01,0.00023013,4]
[365341108,1749609044288,-1150.16,0.00023013,4]
[365341110,1749609044298,-2491.0,0.00023013,4]
[365341112,1749609044308,-2402.75,0.00023013,4]
[365341114,1749609044317,-286.936294,0.00023013,7]
[365341116,1749609044326,-286.936294,0.00023013,7]
[365341118,1749609044336,-723.02,0.00023013,4]
[365341120,1749609044345,-365.0707398,0.00023014,2]
[365341122,1749609044354,-365.0707398,0.00023014,2]
[365341124,1749609044363,-365.0707398,0.00023014,2]
[365341126,1749609044373,-8678.43774074,0.00023038,8]
[365341128,1749609044382,-5000.0,0.0002308,2]
[365341130,1749609044392,-207.4,0.0002308,2]
[365341132,1749609044401,-841.10451232,0.0002308,2]
[365341134,1749609044411,-151.0,0.000231,8]
[365341136,1749609044420,-8678.43774074,0.00023141,8]
[365341138,1749609044430,-845.0,0.00023201,2]
[365341140,1749609044440,-8678.43774074,0.00023245,8]
[365341142,1749609044450,-285.78694,0.00023245,7]
[365341144,1749609044459,-272.158606,0.00023245,7]
[365341147,1749609044469,-845.0,0.00023248,2]
[365341149,1749609044482,-845.0,0.00023255,2]
[365341151,1749609044492,-500.0,0.00023256,2]
[365341153,1749609044502,-151.0,0.00023286,7]
[365341155,1749609044512,-213.373721,0.00023286,7]
[365341157,1749609044521,-151.0,0.00023287,7]
[365341159,1749609044531,-151.0,0.00023287,7]
[365341160,1749609044541,-1167.82,0.00023287,4]
[365341162,1749609044550,-888.17,0.00023287,4]
[365341164,1749609044560,-460.0,0.00023287,4]
[365341167,1749609044570,-1445.78,0.00023287,4]
[365341168,1749609044580,-460.0,0.00023287,4]
[365341171,1749609044590,-460.0,0.00023287,4]
[365341173,1749609044600,-854.51,0.00023287,4]
[365341175,1749609044610,-1150.05,0.00023287,4]
[365341176,1749609044619,-556.70875,0.00023287,7]
[365341178,1749609044628,-556.70875,0.00023287,7]
[365341181,1749609044639,-293.53617834,0.00023287,4]
[365341183,1749609044649,-516.21,0.00023287,4]
[365341185,1749609044659,-460.0,0.00023287,4]
[365341187,1749609044668,-460.0,0.00023287,4]
[365341189,1749609044678,-1203.07,0.00023287,4]
[365341191,1749609044688,-460.0,0.00023287,4]
[365341193,1749609044698,-2936.58,0.00023287,4]
[365341195,1749609044708,-1253.38,0.00023287,4]
[365341197,1749609044718,-578.39,0.00023287,4]
[365341199,1749609044734,-2106.86,0.00023287,4]
[365341201,1749609044744,-460.0,0.00023287,4]
[365341203,1749609044753,-1603.01,0.00023287,4]
[365341205,1749609044763,-1150.16,0.00023287,4]
[365341207,1749609044773,-2491.0,0.00023287,4]
[365341209,1749609044782,-2402.75,0.00023287,4]
[365341211,1749609044792,-723.02,0.00023287,4]
[365341213,1749609044801,-8678.43774074,0.00023348,9]
[365341215,1749609044810,-845.0,0.00023367,2]
[365341217,1749609044819,-151.0,0.000234,7]
[365341219,1749609044829,-6066.70157499,0.000234,7]
[365341221,1749609044838,-6066.70157499,0.000234,7]
[365341223,1749609044847,-151.0,0.000234,7]
[365341225,1749609044856,-33192.69,0.000234,2]
[365341227,1749609044865,-151.0,0.000234,7]
[365341229,1749609044875,-151.0,0.000234,7]
[365341231,1749609044884,-151.0,0.000234,7]
[365341233,1749609044894,-151.0,0.000234,7]
[365341235,1749609044904,-151.0,0.000234,7]
[365341237,1749609044913,-163.968165,0.000234,7]
[365341239,1749609044923,-163.968165,0.000234,7]
[365341241,1749609044932,-153.416781,0.000234,7]
[365341243,1749609044942,-153.949274,0.000234,7]
[365341246,1749609044952,-342.082708,0.000234,7]
[365341248,1749609044962,-342.082708,0.000234,7]
[365341250,1749609044973,-286.936294,0.000234,7]
[365341252,1749609044983,-286.936294,0.000234,7]
[365341254,1749609044992,-8678.43774074,0.00023452,9]
[365341256,1749609045002,-175.32788784,0.00023461,2]
[365341258,1749609045011,-1695.82,0.00023464,2]
[365341260,1749609045021,-151.0,0.00023464,7]
[365341262,1749609045030,-151.0,0.000235,7]
[365341274,1749609045136,-845.0,0.00023527,2]
[365341276,1749609045147,-845.0,0.00023528,2]
[365341279,1749609045157,-230.06854051,0.00023544,2]
[365341281,1749609045166,-8678.43774074,0.00023555,9]
[365341283,1749609045175,-151.0,0.00023561,7]
[365341285,1749609045184,-151.0,0.00023561,7]
[365341287,1749609045194,-1167.82,0.00023561,4]
[365341289,1749609045203,-888.17,0.00023561,4]
[365341291,1749609045212,-460.0,0.00023561,4]
[365341293,1749609045222,-1445.78,0.00023561,4]
[365341295,1749609045232,-460.0,0.00023561,4]
[365341297,1749609045241,-460.0,0.00023561,4]
[365341299,1749609045250,-854.51,0.00023561,4]
[365341301,1749609045259,-1150.05,0.00023561,4]
[365341303,1749609045269,-516.21,0.00023561,4]
[365341305,1749609045278,-460.0,0.00023561,4]
[365341307,1749609045287,-460.0,0.00023561,4]
[365341309,1749609045296,-1203.07,0.00023561,4]
[365341311,1749609045306,-460.0,0.00023561,4]
[365341313,1749609045315,-2936.58,0.00023561,4]
[365341315,1749609045324,-1253.38,0.00023561,4]
[365341317,1749609045332,-578.39,0.00023561,4]
[365341319,1749609045342,-2106.86,0.00023561,4]
[365341321,1749609045352,-460.0,0.00023561,4]
[365341323,1749609045361,-1603.01,0.00023561,4]
[365341324,1749609045371,-1150.16,0.00023561,4]
[365341326,1749609045380,-2491.0,0.00023561,4]
[365341328,1749609045390,-2402.75,0.00023561,4]
[365341331,1749609045400,-723.02,0.00023561,4]
[365341333,1749609045409,-5000.0,0.00023628,2]
[365341335,1749609045418,-845.0,0.00023637,2]
[365341337,1749609045428,-1257.589503,0.00023654,3]
[365341339,1749609045437,-8678.43774074,0.00023659,9]
[365341341,1749609045446,-556.70875,0.00023659,7]
[365341343,1749609045455,-556.70875,0.00023659,7]
[365341345,1749609045465,-600.0,0.00023673,2]
[365341346,1749609045475,-502.39152022,0.00023673,2]
[365341348,1749609045484,-567.2069987,0.00023673,2]
[365341350,1749609045493,-506.16225976,0.00023673,2]
[365341352,1749609045503,-500.0,0.00023673,2]
[365341354,1749609045512,-201.68787317,0.0002368,2]
[365341356,1749609045521,-167.91038412,0.00023696,2]
[365341358,1749609045530,-463.32,0.000237,7]
[365341359,1749609045540,-151.0,0.000237,9]
[365341361,1749609045549,-97588.73189227,0.000237,2]
[365341378,1749609045731,-460.0,0.00021095,4]
[365341379,1749609045741,-310.0,0.00021095,4]
[365341381,1749609045751,-460.0,0.00021369,4]
[365341383,1749609045760,-460.0,0.00021643,4]
[365341385,1749609045770,-120.86282811,0.000237,2]
[365341390,1749609045815,-817.84,0.000237,2]
[365341392,1749609045829,-5567.96415849,0.000237,2]